bitfinex/quotes_SOLUSD_20250822
["timestamp","ask_amount","ask_price","bid_price","bid_amount"]
[1755894340993,0.06,199.15,199.14,49.55577136]
[1755894342499,0.06,199.15,199.14,48.88577136]
[1755894343083,0.06,199.15,199.14,50.89637736]
[1755894343499,0.06,199.15,199.14,45.59130135]
[1755894343694,0.06,199.15,199.14,50.89637736]
[1755894343904,0.06,199.15,199.14,50.89605052]
[1755894344695,0.71,199.15,199.14,48.60112138]
[1755894344984,0.71,199.15,199.14,3.70045136]
[1755894345187,0.71,199.15,199.14,46.40045136]
[1755894345370,0.71,199.15,199.14,46.6847745]
[1755894351285,6.01507601,199.15,199.14,3.70045136]
[1755894351480,16.01507601,199.15,199.14,3.70045136]
[1755894351878,10.21,199.15,199.14,3.70045136]
[1755894352088,15.51507601,199.15,199.14,3.70045136]
[1755894352896,15.51507601,199.15,199.14,3.71147304]
[1755894354508,10.21,199.15,199.14,3.71147304]
[1755894354718,15.51507601,199.15,199.14,3.71147304]
[1755894359011,15.51507601,199.15,199.14,3.72477467]
[1755894359512,10.0,199.1,199.09,0.03]
[1755894359714,49.44,199.1,199.09,3.75468484]
[1755894359899,50.11,199.1,199.09,3.75468484]
[1755894360105,55.41507601,199.1,199.09,3.75468484]
[1755894361116,50.11,199.1,199.09,3.75468484]
[1755894361313,55.41507601,199.1,199.09,3.75402628]
[1755894362120,50.11,199.1,199.09,3.75387114]
[1755894362338,55.41507601,199.1,199.09,3.75387114]
[1755894363296,15.97507601,199.1,199.09,3.75387114]
[1755894363502,50.07,199.1,199.09,3.75387114]
[1755894363800,55.37507601,199.1,199.09,3.75387114]
[1755894364015,55.37507601,199.1,199.09,3.7527894]
[1755894364402,50.07,199.1,199.09,3.7527894]
[1755894364618,55.37507601,199.1,199.09,3.7527894]
[1755894365319,50.07,199.1,199.09,3.7527894]
[1755894365527,10.0,199.12,199.09,10.01218855]
[1755894365726,10.0,199.11,199.1,4.00711254]
[1755894366020,10.0,199.11,199.1,4.67711254]
[1755894366193,10.0,199.11,199.1,4.00711254]
[1755894367623,10.0,199.11,199.1,9.98218855]
[1755894368502,39.4,199.12,199.1,9.98218855]
[1755894368709,39.4,199.12,199.11,4.3927894]
[1755894369014,49.4,199.12,199.11,4.3927894]
[1755894369215,39.4,199.12,199.11,4.3927894]
[1755894370030,10.0,199.13,199.11,5.97507601]
[1755894370232,10.0,199.13,199.12,9.69303596]
[1755894370410,49.36,199.13,199.12,9.69303596]
[1755894370608,49.36,199.13,199.12,6.25939915]
[1755894370809,49.36,199.13,199.12,9.97725261]
[1755894370810,39.36,199.13,199.12,9.97725261]
[1755894371533,39.36,199.13,199.12,9.30725261]
[1755894372627,39.36,199.13,199.12,9.97725261]
[1755894373110,39.36,199.13,199.12,9.97451479]
[1755894373502,10.0,199.14,199.13,0.28432314]
[1755894373706,0.06,199.17,199.16,26.0]
[1755894373903,0.06,199.17,199.16,23.5701088]
[1755894374330,0.06,199.17,199.16,24.07221765]
[1755894374538,0.06,199.17,199.16,25.5805128]
[1755894375530,0.06,199.17,199.16,24.9105128]
[1755894375836,0.06,199.17,199.16,25.5805128]
[1755894377053,0.73,199.17,199.16,5.72551964]
[1755894377204,0.73,199.17,199.16,11.03059565]
[1755894377205,0.06,199.17,199.16,11.03059565]
[1755894377537,0.06,199.17,199.16,11.17275722]
[1755894377731,0.06,199.17,199.16,11.31491879]
[1755894377904,0.06,199.17,199.16,6.00984278]
[1755894378104,0.06,199.17,199.16,24.9105128]
[1755894378338,0.06,199.17,199.16,25.5805128]
[1755894379233,0.06,199.17,199.16,25.57444837]
[1755894379941,0.06,199.17,199.16,21.86539716]
[1755894380152,0.06,199.17,199.16,25.57375265]
[1755894380551,0.06,199.17,199.16,11.30815864]
[1755894380840,0.73,199.17,199.16,5.71875949]
[1755894381043,0.73,199.17,199.16,3.70835549]
[1755894381550,0.06,199.17,199.16,3.70835549]
[1755894381759,0.06,199.17,199.16,22.89334865]
[1755894381907,0.06,199.17,199.16,17.58827264]
[1755894382253,0.73,199.17,199.16,9.29775464]
[1755894382557,0.73,199.17,199.16,29.70835549]
[1755894383049,0.06,199.17,199.16,35.29775464]
[1755894383349,0.73,199.17,199.16,29.70835549]
[1755894383547,6.03507601,199.17,199.16,3.70835549]
[1755894385458,6.03507601,199.17,199.12,0.03]
[1755894385649,0.67,199.16,199.13,3.70588824]
[1755894385958,0.67,199.16,199.14,3.73588824]
[1755894386167,0.67,199.16,199.15,3.70588824]
[1755894386322,0.67,199.16,199.14,0.03]
[1755894386721,4.375889,199.16,199.14,0.03]
[1755894386916,5.30507601,199.15,199.14,0.03]
[1755894387151,6.02507601,199.15,199.14,0.03]
[1755894387382,19.62067002,199.15,199.12,0.03]
[1755894387530,5.30507601,199.13,199.12,0.03]
[1755894387844,44.74507601,199.13,199.12,0.03]
[1755894388028,45.46507601,199.13,199.12,0.03]
[1755894388748,0.72,199.15,199.12,0.03]
[1755894388928,45.46507601,199.14,199.13,3.70636859]
[1755894389123,0.78,199.17,199.13,3.70636859]
[1755894389322,0.78,199.17,199.12,0.03]
[1755894389323,39.44,199.14,199.12,0.03]
[1755894389541,39.44,199.14,199.13,3.70540633]
[1755894390032,6.02507601,199.16,199.13,3.70540633]
[1755894390236,39.44,199.15,199.14,3.70540633]
[1755894390624,40.16,199.15,199.14,3.70540633]
[1755894392566,45.46507601,199.15,199.14,3.70540633]
[1755894393128,40.16,199.15,199.14,3.70540633]
[1755894393560,45.46507601,199.15,199.14,3.70540633]
[1755894396041,40.16,199.15,199.14,3.70540633]
[1755894396558,45.46507601,199.15,199.14,3.70540633]
[1755894397255,45.46507601,199.15,199.14,3.71215739]
[1755894397944,45.46507601,199.15,199.12,0.03]
[1755894398154,0.72,199.14,199.13,3.71437106]
[1755894398537,45.40507601,199.14,199.13,3.71437106]
[1755894400086,6.02507601,199.14,199.13,3.71437106]
[1755894400397,39.34,199.14,199.13,3.71437106]
[1755894400682,0.06,199.17,199.13,3.71437106]
[1755894400984,0.06,199.17,199.14,3.71437106]
[1755894401187,39.36,199.16,199.15,9.01944707]
[1755894401480,39.36,199.16,199.15,3.71437106]
[1755894401696,45.38507601,199.16,199.15,3.71437106]
[1755894402183,40.08,199.16,199.15,3.71437106]
[1755894402397,39.36,199.16,199.15,3.71437106]
[1755894402761,0.06,199.17,199.15,3.71437106]
[1755894402963,39.4,199.16,199.13,31.33507601]
[1755894403478,39.4,199.15,199.14,3.71483041]
[1755894403983,39.4,199.15,199.14,29.71483041]
[1755894404691,39.4,199.15,199.14,3.71483041]
[1755894405384,39.4,199.15,199.14,9.68990642]
[1755894405566,39.38,199.15,199.14,9.68990642]
[1755894405758,39.38,199.15,199.14,3.71483041]
[1755894405759,40.1,199.15,199.14,3.71483041]
[1755894406158,40.1,199.15,199.14,26.0]
[1755894406460,40.1,199.15,199.14,29.71630635]
[1755894407162,40.1,199.15,199.14,29.71669768]
[1755894408288,40.1,199.15,199.14,3.71669768]
[1755894408289,45.40507601,199.15,199.14,3.71669768]
[1755894411183,40.1,199.15,199.14,3.71669768]
[1755894411486,45.40507601,199.15,199.14,3.71669768]
[1755894412189,45.40507601,199.15,199.13,0.03]
[1755894412387,0.72,199.14,199.13,0.03]
[1755894412574,6.02507601,199.14,199.13,0.03]
[1755894412778,8.03730001,199.14,199.13,0.03]
[1755894413775,16.32781801,199.14,199.13,0.03]
[1755894413975,13.59559401,199.13,199.12,0.03]
[1755894414302,59.10067002,199.13,199.12,0.03]
[1755894417881,53.79559401,199.13,199.12,0.03]
[1755894418081,45.50507601,199.13,199.12,0.03]
[1755894418414,45.54507601,199.13,199.12,0.03]
[1755894420393,13.59559401,199.12,199.1,0.03]
[1755894420699,13.59559401,199.1,199.07,0.03]
[1755894420871,39.5,199.09,199.07,0.03]
[1755894421078,44.80507601,199.08,199.07,0.03]
[1755894421278,45.48507601,199.08,199.07,0.03]
[1755894421786,5.98507601,199.08,199.07,0.03]
[1755894421994,45.48507601,199.08,199.07,0.03]
[1755894422498,5.98507601,199.1,199.07,0.03]
[1755894422697,39.48,199.09,199.08,3.71942054]
[1755894422898,5.30507601,199.09,199.08,3.71942054]
[1755894423072,45.46507601,199.09,199.08,3.71942054]
[1755894423278,45.46507601,199.09,199.07,0.03]
[1755894423495,5.30507601,199.08,199.07,0.03]
[1755894423687,5.30507601,199.08,199.07,3.74988169]
[1755894423890,5.30507601,199.08,199.07,3.74988587]
[1755894424696,2.692426,199.13,199.07,3.74988587]
[1755894424917,5.30507601,199.1,199.08,3.71988587]
[1755894425083,39.52,199.09,199.07,0.03]
[1755894425405,39.52,199.09,199.08,3.71826054]
[1755894425582,5.30507601,199.12,199.08,3.71826054]
[1755894425788,39.52,199.11,199.09,3.71826054]
[1755894425976,7.31750201,199.13,199.1,3.71707475]
[1755894426176,5.30507601,199.13,199.11,3.71707475]
[1755894426479,5.30507601,199.13,199.12,3.71707475]
[1755894426678,44.80507601,199.13,199.12,3.71707475]
[1755894427196,39.5,199.13,199.12,3.71707475]
[1755894427586,0.06,199.15,199.12,3.71707475]
[1755894427785,0.06,199.15,199.13,3.71707475]
[1755894428015,0.06,199.15,199.14,3.71707475]
[1755894428192,39.58,199.15,199.14,3.71707475]
[1755894428391,0.06,199.15,199.14,9.69215076]
[1755894428709,39.58,199.15,199.14,9.69215076]
[1755894428909,39.58,199.15,199.14,9.9764739]
[1755894429596,39.58,199.15,199.14,23.57206791]
[1755894429597,0.06,199.15,199.14,23.57206791]
[1755894429780,0.00880152,199.15,199.14,23.57206791]
[1755894431985,0.00880152,199.15,199.14,3.71707475]
[1755894431986,39.52880152,199.15,199.14,3.71707475]
[1755894432499,39.52880152,199.15,199.14,9.01782277]
[1755894432698,0.00880152,199.15,199.14,4.38274676]
[1755894432898,39.52880152,199.15,199.14,9.68676126]
[1755894433211,39.52880152,199.15,199.14,9.01676126]
[1755894434306,40.20880152,199.15,199.14,3.71168525]
[1755894434519,45.51387753,199.15,199.14,3.71168525]
[1755894435411,45.51387753,199.15,199.14,3.71302501]
[1755894436903,45.51387753,199.15,199.09,26.0]
[1755894437106,0.68,199.14,199.1,3.71354132]
[1755894437306,0.68,199.14,199.11,3.71354132]
[1755894437501,39.52880152,199.15,199.12,3.71354132]
[1755894437812,0.68,199.13,199.09,26.0]
[1755894438019,0.68,199.13,199.1,3.71329739]
[1755894438200,0.68,199.13,199.11,3.71329739]
[1755894438401,5.98507601,199.12,199.09,26.0]
[1755894438602,5.30507601,199.1,199.09,26.0]
[1755894438829,5.30507601,199.1,199.09,29.71289039]
[1755894440333,44.86507601,199.11,199.09,29.71289039]
[1755894440517,44.86507601,199.11,199.1,3.71289039]
[1755894440703,39.56,199.11,199.1,3.71289039]
[1755894440910,44.86507601,199.11,199.1,3.71289039]
[1755894441539,44.86507601,199.11,199.1,3.71381297]
[1755894442233,39.56,199.11,199.1,3.71381297]
[1755894442418,44.86507601,199.11,199.1,3.71381297]
[1755894443405,45.54507601,199.11,199.1,3.71381297]
[1755894444433,45.54507601,199.11,199.07,0.03]
[1755894444637,5.30507601,199.08,199.07,0.03]
[1755894444840,44.84507601,199.08,199.07,3.74553326]
[1755894447943,39.5,199.08,199.07,4.41553326]
[1755894450545,39.5,199.08,199.07,4.41506699]
[1755894451450,39.5,199.08,199.07,35.720143]
[1755894451846,39.5,199.08,199.07,4.41506699]
[1755894452217,39.5,199.08,199.07,3.74506699]
[1755894452723,39.5,199.08,199.07,29.74506699]
[1755894453450,39.5,199.08,199.07,3.74506699]
[1755894455722,39.5,199.08,199.07,4.41506699]
[1755894456352,39.5,199.08,199.07,3.74506699]
[1755894457932,39.5,199.08,199.07,9.720143]
[1755894458132,39.5,199.08,199.07,3.74506699]
[1755894459224,39.5,199.08,199.07,9.050143]
[1755894459629,39.5,199.08,199.07,5.33507601]
[1755894459834,39.5,199.08,199.07,9.04995067]
[1755894460355,39.5,199.08,199.07,9.05038862]
[1755894462147,39.5,199.08,199.07,3.74531261]
[1755894463652,39.5,199.08,199.07,46.44531261]
[1755894464848,40.2,199.08,199.07,46.44531261]
[1755894465055,39.5,199.08,199.07,46.44531261]
[1755894469075,39.5,199.08,199.07,46.45087197]
[1755894469260,39.5,199.08,199.07,46.73519511]
[1755894469435,0.00880152,199.15,199.11,0.28432314]
[1755894469631,0.00880152,199.15,199.14,5.30507601]
[1755894469827,39.36880152,199.15,199.14,29.72087197]
[1755894470266,39.36880152,199.15,199.14,35.02594798]
[1755894471869,39.36880152,199.15,199.14,29.72087197]
[1755894472058,40.06880152,199.15,199.14,29.71671049]
[1755894473444,45.37387753,199.15,199.14,3.71671049]
[1755894477683,40.06880152,199.15,199.14,3.71671049]
[1755894477882,45.37387753,199.15,199.14,3.72484679]
[1755894478490,45.37387753,199.15,199.14,3.7256183]
[1755894480453,39.36880152,199.15,199.14,3.7256183]
[1755894480784,0.00880152,199.15,199.14,3.7256183]
[1755894480953,39.36880152,199.15,199.14,3.7256183]
[1755894481157,39.36880152,199.15,199.14,4.3956183]
[1755894481358,39.36880152,199.15,199.14,35.70069431]
[1755894481765,39.36880152,199.15,199.14,35.03069431]
[1755894482081,39.36880152,199.15,199.14,29.7256183]
[1755894482257,39.36880152,199.15,199.14,35.03069431]
[1755894482981,40.03880152,199.15,199.14,29.72074233]
[1755894483287,39.36880152,199.15,199.14,29.72074233]
[1755894484889,40.03880152,199.15,199.14,29.72074233]
[1755894485982,40.03880152,199.15,199.14,26.0]
[1755894486283,40.03880152,199.15,199.14,29.71966336]
[1755894488488,39.36880152,199.15,199.14,29.71966336]
[1755894489520,0.00880152,199.15,199.14,29.71966336]
[1755894489687,39.34880152,199.15,199.14,29.71966336]
[1755894494992,39.34880152,199.15,199.14,29.71890741]
[1755894495705,39.34880152,199.15,199.14,29.71891845]
[1755894497611,0.00880152,199.15,199.14,29.71891845]
[1755894497825,39.34880152,199.15,199.14,29.71891845]
[1755894498143,39.34880152,199.15,199.14,35.02399446]
[1755894498339,39.34880152,199.15,199.14,35.69399446]
[1755894498544,39.34880152,199.15,199.14,35.02399446]
[1755894498838,39.34880152,199.15,199.14,29.71891845]
[1755894499036,39.34880152,199.15,199.14,77.72399446]
[1755894500840,39.34880152,199.15,199.14,35.3083176]
[1755894501030,0.06,199.17,199.16,13.59559401]
[1755894501348,0.00210216,199.17,199.16,65.60391161]
[1755894501715,0.00210216,199.17,199.16,66.27391161]
[1755894504125,0.00210216,199.17,199.16,62.55499316]
[1755894504444,0.00210216,199.17,199.16,66.26773267]
[1755894508233,0.00210216,199.17,199.16,105.58773267]
[1755894510421,0.06,199.18,199.17,42.98222098]
[1755894510636,0.06,199.19,199.17,66.26571786]
[1755894510825,0.06,199.19,199.18,62.88782002]
[1755894511022,0.00820859,199.19,199.18,62.88782002]
[1755894511444,0.06,199.2,199.19,0.28432314]
[1755894511624,0.06,199.2,199.19,9.30222601]
[1755894511838,0.06,199.2,199.19,3.99715]
[1755894512046,0.06,199.2,199.19,9.30222601]
[1755894513245,0.76,199.2,199.19,26.28432314]
[1755894513447,0.76,199.2,199.19,48.89985826]
[1755894513833,0.76,199.2,199.19,91.5977561]
[1755894514033,0.06,199.2,199.19,91.59736406]
[1755894514843,0.06,199.2,199.19,86.29228805]
[1755894514844,0.76,199.2,199.19,86.29228805]
[1755894515038,0.76,199.2,199.19,91.59736406]
[1755894515246,0.06,199.2,199.19,91.59736406]
[1755894516026,0.76,199.2,199.19,86.29228805]
[1755894516241,0.76,199.2,199.19,91.59736406]
[1755894520156,0.76,199.2,199.19,91.62736406]
[1755894521247,0.06,199.2,199.19,91.62736406]
[1755894522454,0.76,199.2,199.19,91.62736406]
[1755894522656,0.76,199.2,199.19,91.62912008]
[1755894523157,0.76,199.2,199.19,91.62874025]
[1755894523338,0.76,199.2,199.19,87.912891]
[1755894523546,0.76,199.2,199.19,91.62910372]
[1755894525468,0.76,199.2,199.19,78.03350971]
[1755894526746,0.06,199.2,199.19,78.03350971]
[1755894530166,0.06,199.2,199.19,72.7284337]
[1755894530367,0.06,199.2,199.19,78.03350971]
[1755894531973,0.06,199.2,199.19,78.03599624]
[1755894532473,0.76,199.2,199.19,78.03598139]
[1755894534564,0.76,199.2,199.19,52.03598139]
[1755894534744,0.76,199.2,199.19,78.03598139]
[1755894535048,0.76,199.2,199.19,78.03953391]
[1755894535241,0.0875526,199.2,199.19,78.03953391]
[1755894536246,0.1475526,199.2,199.19,78.03953391]
[1755894536965,0.06,199.2,199.19,78.03953391]
[1755894538853,0.06,199.2,199.19,80.05003891]
[1755894540667,0.06,199.2,199.19,76.32780199]
[1755894540888,6.02507601,199.2,199.19,3.75827734]
[1755894541170,8.03638901,199.2,199.19,3.75827734]
[1755894541467,45.30507601,199.2,199.19,3.75827734]
[1755894541669,40.0,199.2,199.19,3.76183815]
[1755894542044,45.30507601,199.2,199.19,3.76183815]
[1755894543263,45.30507601,199.2,199.19,3.76259415]
[1755894544471,40.0,199.2,199.19,3.76259415]
[1755894544677,45.30507601,199.2,199.19,3.76259415]
[1755894545355,0.06,199.2,199.19,29.76259415]
[1755894545558,39.34,199.2,199.19,29.76259415]
[1755894545943,39.34,199.2,199.19,3.76798877]
[1755894546752,0.06,199.2,199.19,9.78306478]
[1755894547057,39.34,199.2,199.19,9.78306478]
[1755894547460,45.30507601,199.2,199.19,3.76798877]
[1755894547665,39.34,199.2,199.19,3.76798877]
[1755894548553,0.06,199.2,199.19,3.76798877]
[1755894548760,39.34,199.2,199.19,9.07306478]
[1755894548963,39.34,199.2,199.19,5.33507601]
[1755894549272,0.06,199.21,199.19,9.92863008]
[1755894549454,39.28,199.2,199.19,0.31432314]
[1755894549656,39.28,199.2,199.19,9.3595639]
[1755894549961,39.28,199.2,199.19,24.4391089]
[1755894550566,39.94,199.2,199.19,3.77016475]
[1755894550775,45.24507601,199.2,199.19,3.77016475]
[1755894551375,39.94,199.2,199.19,3.77016475]
[1755894552175,39.94,199.2,199.19,3.77001644]
[1755894553865,40.0,199.2,199.19,3.77001644]
[1755894555181,39.34,199.2,199.19,3.77001644]
[1755894555988,39.34,199.2,199.19,3.77160217]
[1755894556476,40.0,199.2,199.19,3.77160217]
[1755894556654,39.34,199.2,199.19,3.77160217]
[1755894556849,0.06,199.2,199.19,3.77160217]
[1755894557084,39.34,199.2,199.19,3.77160217]
[1755894557476,40.0,199.2,199.19,3.77160217]
[1755894558183,39.34,199.2,199.19,0.03]
[1755894558391,39.34,199.2,199.19,3.77186937]
[1755894558766,39.34,199.2,199.19,3.77203031]
[1755894559085,40.0,199.2,199.19,3.77203031]
[1755894561299,45.30507601,199.2,199.19,3.77203031]
[1755894564479,40.0,199.2,199.19,3.77203031]
[1755894564794,45.30507601,199.2,199.19,3.77203031]
[1755894565004,40.0,199.2,199.19,3.77203031]
[1755894565282,0.72,199.2,199.19,3.77203031]
[1755894565479,39.98,199.2,199.19,3.77203031]
[1755894565656,45.28507601,199.2,199.19,3.77203031]
[1755894567000,39.32,199.2,199.19,3.77203031]
[1755894567291,40.02,199.2,199.19,3.77230816]
[1755894567635,45.32507601,199.2,199.19,3.77230816]
[1755894567961,45.32507601,199.2,199.19,3.77300086]
[1755894568278,45.32507601,199.2,199.19,3.77302962]
[1755894568787,40.02,199.2,199.19,3.77302962]
[1755894569092,45.32507601,199.2,199.19,3.77302962]
[1755894570115,39.32,199.2,199.19,3.77302962]
[1755894570466,39.32,199.2,199.19,3.77282999]
[1755894571589,40.02,199.2,199.19,3.77282999]
[1755894571815,45.32507601,199.2,199.19,3.77282999]
[1755894572482,0.76,199.2,199.19,3.77282999]
[1755894572683,45.32507601,199.2,199.19,3.77282999]
[1755894574421,40.02,199.2,199.19,3.77282999]
[1755894575933,45.32507601,199.2,199.19,3.77282999]
[1755894576305,45.32507601,199.2,199.19,0.03]
[1755894576504,40.02,199.2,199.19,3.77349357]
[1755894576829,39.32,199.2,199.19,3.77349357]
[1755894577215,0.06,199.2,199.19,3.77349357]
[1755894577402,39.32,199.2,199.19,3.77313057]
[1755894578193,40.02,199.2,199.19,3.77313057]
[1755894578737,39.32,199.2,199.19,3.77313057]
[1755894580115,0.06,199.2,199.19,3.77313057]
[1755894580319,39.32,199.2,199.19,3.77313057]
[1755894584736,45.32507601,199.2,199.19,3.77313057]
[1755894585232,40.02,199.2,199.19,3.77313057]
[1755894585533,45.32507601,199.2,199.19,3.77313057]
[1755894585737,45.32507601,199.2,199.19,3.77057218]
[1755894586338,45.32507601,199.2,199.19,3.77013763]
[1755894587548,60.41144501,199.2,199.19,3.77013763]
[1755894592623,21.15144501,199.2,199.19,3.77013763]
[1755894592950,60.41144501,199.2,199.19,3.77013763]
[1755894594321,55.106369,199.2,199.19,3.77013763]
[1755894594524,60.41144501,199.2,199.19,3.77013763]
[1755894594833,55.106369,199.2,199.19,3.76891961]
[1755894595038,60.41144501,199.2,199.19,3.76891961]
[1755894595545,60.41144501,199.2,199.19,3.76907147]
[1755894596323,58.50107544,199.2,199.19,3.76907147]
[1755894599247,55.106369,199.2,199.19,3.76907147]
[1755894599430,43.41470644,199.2,199.19,3.76907147]
[1755894599631,47.18377844,199.2,199.19,3.76907147]
[1755894599927,43.789072,199.2,199.19,3.76907147]
[1755894600122,47.18377844,199.2,199.19,3.76907147]
[1755894600366,60.77937245,199.2,199.19,3.76907147]
[1755894600670,39.59559401,199.16,199.15,0.03]
[1755894600824,13.59559401,199.15,199.07,0.03]
[1755894601024,3.39470644,199.11,199.07,0.03]
[1755894601251,3.39470644,199.11,199.1,3.77085455]
[1755894601447,43.35470644,199.11,199.1,3.77085455]
[1755894601653,42.65470644,199.11,199.1,3.77085455]
[1755894602027,42.65470644,199.11,199.1,0.03]
[1755894602226,3.39470644,199.11,199.1,0.03]
[1755894602453,44.56805479,199.11,199.1,0.03]
[1755894603633,45.26805479,199.11,199.1,0.03]
[1755894604143,41.272427,199.11,199.1,0.03]
[1755894604355,46.58048179,199.11,199.1,0.03]
[1755894605069,47.28048179,199.11,199.1,0.03]
[1755894605351,44.56805479,199.11,199.1,0.03]
[1755894605725,5.30805479,199.11,199.1,0.03]
[1755894605922,44.56805479,199.11,199.1,0.03]
[1755894607686,50.57610958,199.11,199.1,0.03]
[1755894608159,39.96,199.11,199.1,0.03]
[1755894608325,45.26805479,199.11,199.1,0.03]
[1755894608730,39.96,199.11,199.1,0.03]
[1755894608940,45.26805479,199.11,199.1,0.03]
[1755894609843,44.56805479,199.11,199.1,0.03]
[1755894611367,5.30805479,199.11,199.1,0.03]
[1755894611550,39.26,199.11,199.1,0.75]
[1755894611751,39.26,199.11,199.1,4.48007854]
[1755894612059,39.26,199.11,199.1,4.48136918]
[1755894612455,0.06,199.18,199.1,4.48136918]
[1755894612771,5.30805479,199.16,199.11,9.75951528]
[1755894612943,39.28,199.15,199.12,4.45146049]
[1755894613143,39.28,199.15,199.13,4.45146049]
[1755894613373,39.28,199.15,199.14,4.45146049]
[1755894613773,5.30805479,199.17,199.14,4.45146049]
[1755894613975,39.28,199.16,199.15,4.45146049]
[1755894614475,44.58805479,199.16,199.15,3.73146049]
[1755894614645,45.28805479,199.16,199.15,3.73146049]
[1755894615051,45.28805479,199.16,199.1,0.75]
[1755894615246,5.30805479,199.13,199.11,3.73348602]
[1755894615565,5.30805479,199.13,199.12,4.45348602]
[1755894615772,39.28,199.13,199.12,3.73348602]
[1755894616275,39.28,199.13,199.12,4.4527357]
[1755894616576,39.28,199.13,199.12,0.72]
[1755894616872,39.28,199.13,199.1,0.03]
[1755894617076,44.58805479,199.13,199.1,0.75]
[1755894617251,44.58805479,199.13,199.11,3.73347908]
[1755894617450,39.28,199.13,199.12,3.73347908]
[1755894617779,44.58805479,199.13,199.12,3.73347908]
[1755894618864,39.28,199.13,199.12,3.73347908]
[1755894619150,44.58805479,199.13,199.12,3.73347908]
[1755894619349,39.28,199.13,199.12,3.73347908]
[1755894619551,44.58805479,199.13,199.12,3.73347908]
[1755894620377,45.28805479,199.13,199.12,3.73347908]
[1755894620885,44.58805479,199.13,199.12,3.73347908]
[1755894621088,45.28805479,199.13,199.12,3.73347908]
[1755894621459,39.98,199.13,199.12,3.73347908]
[1755894621985,45.28805479,199.13,199.12,3.73347908]
[1755894622154,39.98,199.13,199.1,0.03]
[1755894622357,39.98,199.13,199.11,3.73554373]
[1755894622583,39.98,199.13,199.12,3.73554373]
[1755894622750,39.98,199.13,199.12,3.73582904]
[1755894623158,39.98,199.13,199.12,3.73595822]
[1755894623559,45.28805479,199.13,199.12,3.73595822]
[1755894623754,44.58805479,199.13,199.12,3.73595822]
[1755894623979,45.28805479,199.13,199.12,3.73595822]
[1755894625678,39.28,199.13,199.12,3.73595822]
[1755894626068,44.58805479,199.13,199.12,3.73595822]
[1755894627190,39.28,199.13,199.12,3.73595822]
[1755894627486,44.78805479,199.13,199.12,4.40595822]
[1755894627877,39.48,199.13,199.12,4.40595822]
[1755894628181,39.48,199.13,199.12,4.4063563]
[1755894629497,39.48,199.13,199.12,3.7363563]
[1755894629799,44.78805479,199.13,199.12,3.7363563]
[1755894630003,45.47805479,199.13,199.12,3.7363563]
[1755894631195,45.47805479,199.13,199.12,3.73641933]
[1755894631788,45.47805479,199.13,199.12,3.73724461]
[1755894632600,40.17,199.13,199.12,3.73724461]
[1755894632770,45.47805479,199.13,199.12,3.73724461]
[1755894632965,39.48,199.13,199.12,3.73724461]
[1755894633286,40.17,199.13,199.12,3.73724461]
[1755894633498,45.47805479,199.13,199.12,3.73724461]
[1755894634002,40.19,199.13,199.12,3.73724461]
[1755894634292,45.49805479,199.13,199.12,3.73695533]
[1755894634468,5.99805479,199.13,199.12,3.73695533]
[1755894634663,45.49805479,199.13,199.12,3.73695533]
[1755894635310,40.19,199.13,199.12,3.73695533]
[1755894635601,45.49805479,199.13,199.12,3.73695533]
[1755894635894,5.99805479,199.13,199.12,3.73695533]
[1755894636067,45.49805479,199.13,199.12,3.73695533]
[1755894637365,44.78805479,199.13,199.12,3.73695533]
[1755894637570,39.48,199.13,199.12,3.73695533]
[1755894637882,44.78805479,199.13,199.12,3.73695533]
[1755894638701,39.48,199.13,199.12,3.73695533]
[1755894639083,44.78805479,199.13,199.12,3.73695533]
[1755894639497,39.48,199.13,199.12,3.73695533]
[1755894639806,39.48,199.13,199.12,4.40695533]
[1755894640295,39.48,199.13,199.12,4.40519446]
[1755894640874,0.06,199.16,199.12,4.40558895]
[1755894641095,39.48,199.15,199.13,9.71364374]
[1755894641294,39.48,199.15,199.14,4.40558895]